bitfinex/quotes_SOLUSD_20251001
["timestamp","ask_amount","ask_price","bid_price","bid_amount"]
[1759303669672,7.16150017,209.47,209.45,21.48]
[1759303670072,7.16150017,209.47,209.45,20.8]
[1759303671675,7.16150017,209.47,209.45,21.48]
[1759303672765,7.16150017,209.47,209.45,20.8]
[1759303673077,7.16150017,209.47,209.46,0.68]
[1759303673869,7.16150017,209.47,209.45,20.8]
[1759303674083,7.16150017,209.47,209.45,21.48]
[1759303674257,6.30223989,209.47,209.45,21.48]
[1759303675279,6.30223989,209.47,209.45,20.8]
[1759303675459,6.30223989,209.47,209.46,0.68]
[1759303675659,6.30223989,209.47,209.45,20.8]
[1759303675954,6.30223989,209.47,209.45,21.48]
[1759303676256,4.77405843,209.47,209.45,20.8]
[1759303676458,6.30223989,209.47,209.46,0.68]
[1759303676771,6.30223989,209.47,209.45,21.48]
[1759303676968,4.77405843,209.47,209.46,0.68]
[1759303677373,133.5,209.48,209.46,0.68]
[1759303677575,133.5,209.48,209.46,5.45409554]
[1759303677802,133.5,209.54,209.49,20.8]
[1759303677985,6.30051275,209.55,209.5,0.68]
[1759303678188,6.30011397,209.56,209.5,0.68]
[1759303678486,4.77193251,209.56,209.5,0.68]
[1759303678784,1.52818146,209.56,209.5,0.68]
[1759303679385,1.52818146,209.57,209.51,4.77304185]
[1759303679617,6.29990698,209.57,209.52,0.68]
[1759303679971,4.77172552,209.57,209.52,0.68]
[1759303680174,6.29990698,209.57,209.52,0.68]
[1759303680689,1.52818146,209.57,209.52,0.68]
[1759303681067,11.87024274,209.58,209.52,0.68]
[1759303681266,1.52818146,209.57,209.52,0.68]
[1759303681492,11.87024274,209.58,209.52,5.45266323]
[1759303681690,1.52818146,209.57,209.53,0.68]
[1759303682375,1.52818146,209.56,209.54,0.68]
[1759303683067,16.6417478,209.58,209.54,0.68]
[1759303683068,1.52818146,209.57,209.54,0.68]
[1759303683268,1.52818146,209.57,209.55,0.68]
[1759303684076,56.4,209.59,209.56,0.68]
[1759303684594,57.92818146,209.59,209.56,0.68]
[1759303684893,56.4,209.59,209.57,0.68]
[1759303685105,56.4,209.59,209.55,26.25201765]
[1759303685270,56.4,209.59,209.56,0.68]
[1759303685569,57.92818146,209.59,209.56,0.68]
[1759303686171,56.4,209.59,209.55,25.57207396]
[1759303686386,56.4,209.59,209.57,0.68]
[1759303686598,56.4,209.58,209.57,20.8]
[1759303687080,56.4,209.58,209.57,21.48]
[1759303687867,56.4,209.58,209.57,26.25167533]
[1759303688880,56.4,209.58,209.57,21.48]
[1759303690302,56.4,209.58,209.57,0.68]
[1759303691901,56.4,209.58,209.57,15.00425334]
[1759303696412,0.32,209.63,209.57,15.00425334]
[1759303696413,6.29918611,209.6,209.57,14.32425334]
[1759303696583,1.52818146,209.59,209.57,20.8]
[1759303696779,1.52818146,209.6,209.57,20.8]
[1759303697810,1.52818146,209.58,209.55,14.32562137]
[1759303698103,1.52818146,209.56,209.54,20.8]
[1759303698285,1.52818146,209.56,209.55,20.8]
[1759303698805,6.30008449,209.56,209.53,15.00698966]
[1759303699106,1.52818146,209.55,209.53,21.49]
[1759303699287,4.77169916,209.57,209.53,0.69]
[1759303699288,1.52818146,209.56,209.53,0.69]
[1759303699687,1.52818146,209.56,209.53,21.49]
[1759303700394,6.30053995,209.54,209.53,20.8]
[1759303700795,1.52818146,209.55,209.53,21.49]
[1759303700995,1.52818146,209.55,209.54,20.8]
[1759303701901,1.52818146,209.55,209.52,0.69]
[1759303702089,1.52818146,209.55,209.53,20.8]
[1759303702418,1.52818146,209.55,209.53,21.49]
[1759303702890,6.30017441,209.56,209.53,21.49]
[1759303703098,19.89576842,209.56,209.53,21.49]
[1759303703498,6.30017441,209.56,209.53,21.49]
[1759303704214,1.52818146,209.56,209.53,21.49]
[1759303704709,1.52818146,209.55,209.53,21.49]
[1759303705311,1.52818146,209.55,209.53,20.8]
[1759303705503,1.84818146,209.54,209.49,20.8]
[1759303705698,1.52818146,209.5,209.44,0.69]
[1759303706026,1.52818146,209.47,209.44,0.69]
[1759303706507,1.52818146,209.47,209.45,0.69]
[1759303706711,1.52818146,209.47,209.42,20.8]
[1759303706927,4.7739781,209.47,209.44,20.8]
[1759303707119,1.52818146,209.45,209.44,20.8]
[1759303707292,1.52818146,209.45,209.43,20.8]
[1759303707616,1.52818146,209.44,209.41,0.69]
[1759303707801,1.52818146,209.46,209.43,20.8]
[1759303708006,1.52818146,209.47,209.44,0.69]
[1759303708203,1.52818146,209.47,209.45,0.69]
[1759303708919,1.52818146,209.47,209.43,25.57484956]
[1759303709095,1.52818146,209.48,209.46,0.69]
[1759303710200,1.52818146,209.47,209.46,0.69]
[1759303711508,13.87991715,209.46,209.41,0.69]
[1759303711717,1.52818146,209.43,209.41,0.69]
[1759303711919,1.52818146,209.43,209.42,20.8]
[1759303712318,4.77468179,209.44,209.42,20.8]
[1759303712525,1.52818146,209.43,209.42,20.8]
[1759303713802,6.30283404,209.44,209.42,20.8]
[1759303715097,6.30283404,209.44,209.38,0.69]
[1759303715098,1.52818146,209.43,209.38,0.69]
[1759303715293,1.52818146,209.41,209.38,0.69]
[1759303715713,1.52818146,209.4,209.38,0.69]
[1759303716122,1.52818146,209.41,209.39,0.69]
[1759303716298,1.52818146,209.41,209.39,21.49]
[1759303716719,6.30351269,209.41,209.39,20.8]
[1759303716905,1.52818146,209.41,209.39,21.49]
[1759303717106,1.52818146,209.41,209.4,0.69]
[1759303717508,13.87991715,209.44,209.4,0.69]
[1759303717710,1.52818146,209.43,209.4,0.69]
[1759303717915,56.4,209.45,209.4,15.02657499]
[1759303718103,56.4,209.45,209.41,0.69]
[1759303718303,61.17448367,209.45,209.41,0.69]
[1759303718514,61.17448367,209.45,209.42,0.69]
[1759303719616,62.70266513,209.45,209.42,0.69]
[1759303721325,1.52818146,209.44,209.42,0.69]
[1759303721835,1.52818146,209.43,209.41,20.8]
[1759303722141,6.30312955,209.43,209.41,20.8]
[1759303722304,6.30312955,209.43,209.41,21.49]
[1759303722722,1.52818146,209.43,209.41,21.49]
[1759303723124,6.30305955,209.43,209.41,21.49]
[1759303723530,1.52818146,209.44,209.42,0.69]
[1759303725021,62.70267312,209.45,209.42,0.69]
[1759303725219,56.4,209.44,209.43,0.69]
[1759303725418,1.52818146,209.45,209.43,0.69]
[1759303725924,133.5,209.46,209.42,20.8]
[1759303726118,135.02818146,209.46,209.44,0.69]
[1759303726519,135.02818146,209.46,209.41,5.46524132]
[1759303726733,135.02818146,209.46,209.42,0.69]
[1759303726941,135.02818146,209.46,209.41,4.77524132]
[1759303727235,135.02818146,209.46,209.43,0.69]
[1759303727439,135.02818146,209.46,209.44,0.69]
[1759303728037,133.5,209.46,209.45,0.69]
[1759303729628,56.4,209.48,209.46,20.8]
[1759303729828,13.59559401,209.52,209.47,0.69]
[1759303730148,13.59559401,209.52,209.47,5.46375827]
[1759303730446,13.59559401,209.52,209.48,21.49]
[1759303730619,13.59559401,209.52,209.49,0.69]
[1759303730819,13.59559401,209.52,209.48,20.8]
[1759303731143,18.36846215,209.52,209.48,21.49]
[1759303731340,19.89664361,209.52,209.48,21.49]
[1759303732338,15.12377547,209.52,209.48,25.57371194]
[1759303732537,62.70080608,209.53,209.49,0.69]
[1759303732920,57.92818146,209.53,209.49,0.69]
[1759303734122,62.70084136,209.53,209.49,0.69]
[1759303734324,63.02084136,209.53,209.47,0.69]
[1759303734523,61.4926599,209.53,209.47,0.69]
[1759303734721,1.52818146,209.52,209.47,5.46387369]
[1759303735019,61.4926599,209.53,209.48,0.69]
[1759303735330,1.52818146,209.52,209.48,0.69]
[1759303736342,2.38664803,209.52,209.48,0.69]
[1759303737460,7.15953056,209.52,209.48,0.69]
[1759303737855,7.15953056,209.52,209.49,0.69]
[1759303738151,4.77288253,209.52,209.49,0.69]
[1759303740058,56.4,209.51,209.48,4.7736873]
[1759303740354,56.4,209.51,209.49,0.69]
[1759303740561,56.4,209.51,209.5,0.69]
[1759303740760,56.4,209.51,209.47,4.77393029]
[1759303740963,56.4,209.51,209.49,0.69]
[1759303741549,56.4,209.51,209.47,0.69]
[1759303741859,2.38664803,209.48,209.46,20.8]
[1759303742049,2.38664803,209.47,209.46,20.8]
[1759303742444,2.38664803,209.48,209.46,20.8]
[1759303742759,2.38664803,209.47,209.46,20.8]
[1759303743635,2.38664803,209.48,209.46,21.49]
[1759303744256,2.38664803,209.49,209.46,20.8]
[1759303744852,2.38664803,209.49,209.46,21.49]
[1759303745858,7.16023005,209.49,209.46,20.8]
[1759303746064,2.38664803,209.48,209.46,20.8]
[1759303746454,2.38664803,209.47,209.46,20.8]
[1759303747189,7.16041574,209.48,209.46,20.8]
[1759303750572,77.44002835,209.5,209.47,0.69]
[1759303750948,77.44002835,209.5,209.48,0.69]
[1759303751151,77.44002835,209.5,209.46,21.49]
[1759303751459,77.44002835,209.5,209.47,0.69]
[1759303752061,56.4,209.49,209.48,0.69]
[1759303753052,61.17349754,209.49,209.46,21.49]
[1759303753260,63.56014557,209.49,209.47,0.69]
[1759303753861,63.56014557,209.49,209.46,21.49]
[1759303754276,63.56014557,209.49,209.47,0.69]
[1759303755659,63.56014557,209.49,209.48,0.69]
[1759303755660,56.4,209.49,209.48,0.69]
[1759303755859,56.4,209.49,209.46,20.8]
[1759303756162,56.4,209.49,209.47,0.69]
[1759303756680,56.4,209.49,209.46,20.8]
[1759303756866,56.4,209.49,209.48,0.69]
[1759303757957,21.03984759,209.5,209.48,0.69]
[1759303758382,16.26656518,209.5,209.48,0.69]
[1759303758773,21.03984959,209.5,209.46,25.5741331]
[1759303758958,21.03984959,209.5,209.47,0.68]
[1759303759480,16.26656518,209.5,209.47,0.68]
[1759303759684,21.03985631,209.5,209.47,0.68]
[1759303760979,21.03985631,209.5,209.46,20.8]
[1759303761278,2.38664803,209.49,209.47,0.68]
[1759303762889,18.65320828,209.5,209.47,0.68]
[1759303763067,13.87991715,209.51,209.47,0.68]
[1759303763863,13.87991715,209.51,209.46,20.8]
[1759303763864,56.4,209.48,209.46,25.57404059]
[1759303764096,56.4,209.48,209.47,24.79865833]
[1759303764289,56.4,209.48,209.47,3.99865833]
[1759303764586,13.91559401,209.58,209.49,20.8]
[1759303764769,0.28432314,209.57,209.5,4.67800749]
[1759303764969,0.28432314,209.57,209.51,0.68]
[1759303765286,21.07369846,209.58,209.52,4.77281405]
[1759303765490,21.07369846,209.58,209.52,5.45281405]
[1759303765685,21.07369846,209.58,209.52,21.48]
[1759303765984,13.59559401,209.56,209.52,21.48]
[1759303766190,13.59559401,209.56,209.53,0.68]
[1759303766496,0.28432314,209.57,209.53,0.68]
[1759303767976,0.28432314,209.57,209.54,0.68]
[1759303768395,0.28432314,209.57,209.55,0.68]
[1759303768764,0.28432314,209.57,209.53,0.68]
[1759303769374,13.87991715,209.58,209.53,21.48]
[1759303769576,13.87991715,209.58,209.54,0.68]
[1759303769872,13.87991715,209.58,209.55,20.8]
[1759303770072,13.87991715,209.58,209.56,0.68]
[1759303770478,13.87991715,209.58,209.55,25.5720269]
[1759303770677,13.59559401,209.58,209.57,0.68]
[1759303771606,13.59559401,209.58,209.56,5.45184997]
[1759303771976,13.59559401,209.58,209.57,0.68]
[1759303772713,13.59559401,209.59,209.57,0.68]
[1759303776808,13.59559401,209.59,209.56,20.8]
[1759303776993,13.59559401,209.59,209.56,21.48]
[1759303777508,13.59559401,209.59,209.57,0.68]
[1759303779901,18.36683759,209.59,209.57,0.68]
[1759303780809,13.59559401,209.59,209.57,0.68]
[1759303781909,13.59559401,209.59,209.56,20.8]
[1759303782587,13.59559401,209.59,209.56,21.48]
[1759303783103,13.59559401,209.59,209.56,20.8]
[1759303783304,18.36687312,209.59,209.56,21.48]
[1759303784414,18.68687312,209.59,209.56,20.8]
[1759303784788,18.36687312,209.59,209.56,0.68]
[1759303785422,0.28432314,209.58,209.55,20.8]
[1759303786216,0.28432314,209.58,209.55,21.48]
[1759303786402,0.28432314,209.58,209.55,20.8]
[1759303786598,13.59559401,209.57,209.55,20.8]
[1759303786917,13.59559401,209.57,209.56,20.8]
[1759303788303,13.59559401,209.57,209.55,20.8]
[1759303788487,13.59559401,209.57,209.55,21.48]
[1759303789706,13.59559401,209.57,209.55,20.8]
[1759303790314,13.59559401,209.57,209.55,21.48]
[1759303790522,4.77169762,209.57,209.51,25.57299466]
[1759303790695,0.28432314,209.57,209.52,0.68]
[1759303791611,13.59559401,209.55,209.53,20.8]
[1759303791921,13.59559401,209.55,209.54,0.68]
[1759303792101,13.59559401,209.55,209.53,20.8]
[1759303792303,13.59559401,209.55,209.53,21.48]
[1759303792500,13.59559401,209.55,209.54,0.68]
[1759303792900,13.59559401,209.55,209.53,20.8]
[1759303793098,13.59559401,209.55,209.53,21.48]
[1759303793432,13.59559401,209.55,209.54,0.69]
[1759303800246,133.5,209.56,209.54,0.69]
[1759303800449,133.5,209.56,209.54,5.46225131]
[1759303800617,0.1,209.66,209.57,20.8]
[1759303800946,0.1,209.66,209.58,28.51380071]
[1759303800947,1.52677882,209.64,209.58,28.51380071]
[1759303801243,4.86967198,209.66,209.58,28.51380071]
[1759303801244,15.72669597,209.63,209.58,0.69]
[1759303801420,0.28432314,209.61,209.58,20.8]
[1759303801622,0.14216157,209.58,209.53,0.69]
[1759303801813,13.59559401,209.55,209.53,14.32698966]
[1759303802140,0.28432314,209.54,209.52,0.69]
[1759303802714,0.28432314,209.54,209.46,8.75518015]
[1759303802715,13.59559401,209.55,209.49,20.8]
[1759303803041,20.8,209.64,209.53,0.69]
[1759303803042,0.28432314,209.57,209.53,0.69]
[1759303804233,13.59559401,209.56,209.54,0.69]
[1759303804732,13.59559401,209.56,209.55,0.69]
[1759303805251,0.28432314,209.59,209.55,0.69]
[1759303805431,0.28432314,209.59,209.53,20.8]
[1759303805637,0.28432314,209.59,209.56,0.69]
[1759303806734,4.77144765,209.58,209.51,25.57301029]
[1759303806945,13.59559401,209.59,209.53,0.69]
[1759303807148,13.59559401,209.63,209.55,20.8]
[1759303807327,0.28432314,209.62,209.56,0.69]
[1759303807851,0.28432314,209.62,209.57,20.8]
[1759303808026,0.28432314,209.62,209.58,0.69]
[1759303808425,13.59559401,209.61,209.58,0.69]
[1759303808625,13.59559401,209.61,209.59,0.69]
[1759303808833,13.87991715,209.61,209.6,0.69]
[1759303810447,56.68432314,209.64,209.6,0.69]
[1759303810751,56.68432314,209.64,209.59,4.7711589]
[1759303810752,13.87991715,209.63,209.59,4.7711589]
[1759303810953,1.62677882,209.66,209.6,0.69]
[1759303811161,18.36552863,209.65,209.6,0.69]
[1759303811339,18.36552863,209.65,209.61,0.69]
[1759303811652,0.14216157,209.64,209.61,0.69]
[1759303811858,0.14216157,209.64,209.58,4.771419]
[1759303812047,0.28432314,209.64,209.62,0.69]
[1759303812234,0.28432314,209.64,209.63,0.69]
[1759303812441,56.5,209.66,209.63,0.69]
[1759303812655,56.5,209.66,209.6,20.8]
[1759303812656,56.5,209.66,209.64,0.69]
[1759303813450,61.26967895,209.66,209.64,0.69]
[1759303814539,61.26967895,209.66,209.61,20.8]
[1759303814861,56.5,209.66,209.62,0.69]
[1759303816761,56.5,209.66,209.63,4.77030959]
[1759303817076,56.5,209.66,209.64,0.69]
[1759303817441,56.5,209.66,209.65,0.69]
[1759303817651,0.1,209.66,209.65,21.49]
[1759303817843,0.1,209.66,209.65,20.8]
[1759303818177,0.1,209.66,209.65,21.49]
[1759303820093,0.1,209.66,209.65,0.69]
[1759303821084,0.1,209.66,209.65,26.25985451]
[1759303822154,0.1,209.66,209.65,23.7589539]
[1759303822458,0.1,209.66,209.65,19.77795497]
[1759303823365,0.1,209.66,209.65,5.45985451]
[1759303823560,0.1,209.66,209.65,31.31227656]
[1759303823758,0.1,209.66,209.65,10.51227656]
[1759303824567,0.1,209.66,209.65,31.31227656]
[1759303824975,0.1,209.66,209.65,10.51227656]
[1759303826880,0.1,209.66,209.65,5.45985451]
[1759303828069,0.1,209.66,209.65,26.25985451]
[1759303828277,0.1,209.66,209.65,5.45985451]
[1759303831996,0.1,209.66,209.65,20.8]
[1759303832476,0.1,209.66,209.65,26.25985451]
[1759303832677,0.1,209.66,209.65,21.49]
[1759303832866,0.1,209.66,209.63,21.49]
[1759303833070,0.1,209.66,209.63,0.69]
[1759303833275,0.1,209.66,209.65,20.8]
[1759303833869,0.1,209.66,209.63,26.26027709]
[1759303834268,0.1,209.66,209.64,0.69]
[1759303836180,0.1,209.66,209.65,0.69]
[1759303837081,0.1,209.66,209.64,25.56993936]
[1759303837276,0.1,209.66,209.64,26.25993936]
[1759303837593,0.1,209.66,209.65,0.69]
[1759303837795,0.1,209.66,209.64,25.56993936]
[1759303837979,0.1,209.66,209.64,20.8]
[1759303838184,56.4,209.65,209.64,21.49]
[1759303838587,56.4,209.65,209.64,20.8]
[1759303839097,56.4,209.65,209.64,21.49]
[1759303839594,69.99559401,209.65,209.61,14.32083442]
[1759303839797,1.81110196,209.63,209.57,0.69]
[1759303839986,1.52677882,209.62,209.57,0.69]
[1759303840183,13.91559401,209.62,209.55,4.77213075]
[1759303840383,0.28432314,209.63,209.57,4.77167533]
[1759303840582,56.4,209.65,209.57,4.77167533]
[1759303840901,56.4,209.65,209.6,20.8]
[1759303841202,56.4,209.65,209.61,0.69]
[1759303841583,56.4,209.65,209.6,20.8]
[1759303841982,56.4,209.65,209.61,0.69]
[1759303842280,61.16987354,209.65,209.61,0.69]
[1759303843902,61.16987354,209.65,209.6,20.8]
[1759303844106,13.87991715,209.65,209.61,0.69]
[1759303846012,13.87991715,209.65,209.61,4.77067527]
[1759303846297,13.87991715,209.65,209.62,0.69]
[1759303846507,56.4,209.64,209.63,20.8]
[1759303847692,56.4,209.64,209.61,5.46067527]
[1759303847907,56.4,209.64,209.63,20.8]
[1759303849308,56.4,209.64,209.63,0.69]
[1759303849813,56.4,209.64,209.63,21.49]
[1759303850695,56.4,209.64,209.63,26.26030959]
[1759303853888,0.1,209.66,209.63,38.18608357]
[1759303854088,0.1,209.66,209.64,0.72]
[1759303854285,0.1,209.66,209.65,0.72]
[1759303855589,0.1,209.66,209.65,5.48985451]
[1759303857118,0.1,209.66,209.63,25.57011042]
[1759303857319,0.1,209.66,209.65,20.8]
[1759303857620,1.62677882,209.66,209.65,20.8]
[1759303857803,0.1,209.66,209.64,0.72]
[1759303858302,0.1,209.66,209.64,5.49003888]
[1759303858917,0.1,209.66,209.65,20.8]
[1759303859118,2.76740507,209.66,209.6,0.72]
[1759303859299,2.38308193,209.65,209.62,20.8]
[1759303859500,2.38308193,209.65,209.62,0.72]
[1759303860200,2.76740507,209.66,209.64,20.8]
[1759303860601,0.1,209.66,209.64,21.52]
[1759303860806,0.1,209.66,209.64,20.8]
[1759303861006,2.48308193,209.66,209.64,20.8]
[1759303861717,2.38308193,209.65,209.61,0.72]
[1759303861893,2.38308193,209.65,209.61,21.52]
[1759303862229,2.38308193,209.65,209.64,20.8]
[1759303863109,7.25276904,209.66,209.64,20.8]
[1759303863522,2.48308193,209.66,209.62,5.49050281]
[1759303863724,2.48308193,209.66,209.64,20.8]
[1759303864121,0.1,209.66,209.63,20.8]
[1759303864333,0.1,209.66,209.65,0.72]
[1759303865003,0.1,209.66,209.65,21.52]
[1759303865196,0.1,209.66,209.65,26.28985451]
[1759303865608,0.1,209.66,209.65,32.76727589]
[1759303866029,0.1,209.66,209.65,36.73876592]
[1759303868416,0.1,209.66,209.65,32.76727589]
[1759303868724,0.1,209.66,209.65,35.15035782]
[1759303871220,0.1,209.66,209.65,72.35035782]
[1759303873828,0.1,209.66,209.65,76.30739587]
[1759303875528,0.1,209.66,209.65,69.24727589]
[1759303875717,0.1,209.66,209.65,69.96727589]
[1759303877510,0.1,209.66,209.65,73.92431394]
[1759303878947,0.1,209.66,209.65,69.96727589]
[1759303881144,1e-08,209.66,209.65,77.08544852]
[1759303881346,0.1,209.68,209.67,4.76939953]
[1759303881527,0.1,209.68,209.67,15.20206625]
[1759303881725,0.1,209.68,209.67,15.86206625]
[1759303882249,0.1,209.68,209.67,13.81535444]
[1759303884629,0.1,209.68,209.67,47.01535444]
[1759303885533,1e-08,209.68,209.67,47.01535444]
[1759303885734,0.1,209.76,209.71,20.8]
[1759303885937,0.1,209.76,209.75,20.8]
[1759303886257,0.1,209.76,209.75,53.98]
[1759303888632,0.1,209.76,209.75,91.16]
[1759303889041,0.1,209.76,209.75,95.92758045]
[1759303889455,0.1,209.76,209.75,99.72539062]
[1759303889837,0.1,209.76,209.75,100.42539062]
[1759303891249,0.1,209.76,209.75,100.46539062]
[1759303893546,0.1,209.76,209.75,67.24539062]
[1759303893748,0.1,209.76,209.75,100.46539062]
[1759303895742,0.1,209.76,209.75,100.44539062]
[1759303896156,0.1,209.76,209.75,66.54539062]
[1759303896357,0.1,209.76,209.75,99.74539062]
[1759303896738,0.1,209.76,209.75,100.44539062]
[1759303898064,0.1,209.76,209.75,67.24539062]
[1759303898371,0.1,209.76,209.75,100.44539062]
[1759303901144,0.1,209.76,209.75,67.24539062]
[1759303901547,0.1,209.76,209.75,66.54539062]
[1759303901857,0.1,209.76,209.75,91.2]
[1759303902777,0.42,209.76,209.75,57.98]
[1759303902944,0.42,209.76,209.75,70.4]
[1759303903146,0.1,209.76,209.75,91.2]
[1759303904743,0.1,209.76,209.75,57.98]
[1759303904948,0.1,209.76,209.75,91.2]
[1759303906257,0.42,209.76,209.75,91.2]
[1759303906451,0.1,209.76,209.75,91.2]
[1759303908176,0.1,209.76,209.75,96.66758045]
[1759303910060,0.1,209.76,209.75,95.96758045]
[1759303910267,0.1,209.76,209.75,96.66758045]
[1759303911866,0.1,209.76,209.75,91.2]
[1759303914973,0.1,209.97,209.92,2.48790958]
[1759303915185,0.1,209.97,209.96,20.8]
[1759303915370,0.1,209.97,209.96,38.10926855]
[1759303915692,0.1,209.97,209.96,3.81453946]
[1759303915869,0.1,209.97,209.96,13.33703069]
[1759303916284,1e-08,209.97,209.96,27.21694784]
[1759303916461,0.42,210.09,209.96,27.21694784]
[1759303916462,0.42,210.09,209.99,20.8]
[1759303916664,0.42,210.08,210.01,20.8]
[1759303916872,4.75918522,210.12,210.01,20.8]
[1759303916873,0.42,210.07,210.01,20.8]
[1759303917289,0.42,210.07,209.99,20.8]
[1759303917464,0.42,210.07,210.0,3.13595517]
[1759303917670,0.42,210.07,210.0,4.76190476]
[1759303917981,13.59559401,210.08,210.03,20.8]
[1759303918290,0.42,210.08,210.03,20.8]
[1759303919366,0.42,210.08,210.04,20.8]
[1759303919769,4.7598854,210.09,210.04,20.8]
[1759303920199,13.59559401,210.11,210.04,20.8]
[1759303920379,13.59559401,210.11,210.03,4.76121797]
[1759303920380,5.17782662,210.18,210.06,20.8]
[1759303920566,5.17782662,210.18,210.07,3.79562325]
[1759303920768,0.42,210.17,210.08,0.67]
[1759303921070,0.42,210.16,210.08,0.67]
[1759303921280,0.42,210.15,210.08,0.67]
[1759303921485,4.75844592,210.16,210.08,0.67]
[1759303921793,4.75844592,210.16,210.11,20.8]
[1759303921975,5.17844592,210.16,210.11,20.8]
[1759303922163,0.42,210.15,210.06,14.28945676]
[1759303922370,0.28432314,210.13,210.02,0.67]
[1759303922681,13.59559401,210.11,210.02,0.67]
[1759303922885,14.01559401,210.11,210.04,20.8]
[1759303923084,14.01559401,210.11,210.02,0.67]
[1759303923284,4.75963826,210.1,210.04,20.8]
[1759303924491,0.42,210.09,210.04,20.8]
[1759303924971,0.42,210.08,210.04,20.8]
[1759303925173,0.42,210.08,210.0,0.67]
[1759303925368,0.42,210.08,210.02,20.8]
[1759303925584,56.4,210.08,210.03,0.67]
[1759303926194,56.4,210.08,210.04,20.8]
[1759303926379,4.7600809,210.09,210.04,20.8]
[1759303926576,5.1800809,210.09,210.03,21.47]
[1759303927101,4.7600809,210.09,210.04,20.8]
[1759303927421,4.7600809,210.09,210.04,0.67]
[1759303928494,0.42,210.08,210.03,20.8]
[1759303928695,4.7600809,210.09,210.03,20.8]
[1759303928869,17.07873392,210.1,210.03,21.47]
[1759303929592,4.75963826,210.1,210.04,0.67]
[1759303931081,2.22345498,210.12,210.04,0.67]
[1759303931082,4.75901272,210.13,210.04,5.43099336]
[1759303931287,4.75901272,210.13,210.05,21.47]
[1759303931604,4.75876464,210.14,210.06,0.67]
[1759303932579,18.35409983,210.15,210.09,20.8]
[1759303933276,30.6703644,210.15,210.09,20.8]
[1759303934186,4.75850582,210.15,210.1,0.67]
[1759303934396,18.35379753,210.17,210.11,0.67]
[1759303935108,4.75820352,210.17,210.11,0.67]
[1759303935402,0.42,210.18,210.11,0.67]
[1759303935403,13.59559401,210.18,210.11,0.67]
[1759303935610,4.75778851,210.19,210.11,0.67]
[1759303936094,5.17778851,210.19,210.11,0.67]
[1759303936898,17.07178917,210.19,210.11,5.42933716]
[1759303937199,0.42,210.18,210.09,0.67]
[1759303939103,4.758053,210.17,210.09,5.42977942]
[1759303939305,4.758053,210.17,210.1,0.71]
[1759303940082,16.65318551,210.17,210.11,20.8]
[1759303940309,4.75783999,210.18,210.11,20.8]
[1759303940604,0.42,210.26,210.12,21.51]
[1759303940816,0.42,210.26,210.13,0.71]
[1759303940985,5.17624256,210.25,210.16,20.8]
[1759303941186,0.42,210.24,210.16,20.8]
[1759303941401,13.59559401,210.22,210.13,0.71]
[1759303941708,0.42,210.21,210.14,20.8]
[1759303942085,0.42,210.21,210.14,0.71]
[1759303943105,4.75737392,210.2,210.14,0.71]
[1759303943490,16.65080874,210.2,210.14,0.71]
[1759303947403,16.65080874,210.2,210.11,25.55925327]
[1759303947404,0.42,210.19,210.11,0.72]